fUST/lending_fUST_20240523
["ID","MTS","AMOUNT","RATE_DAILY","PERIOD"]
[327782933,1716475847643,-175.86580288,0.00019994,2]
[327782934,1716475847652,-586.69014213,0.00019994,2]
[327782936,1716475847662,-400.0,0.00019994,2]
[327782939,1716475847671,-500.0,0.00019994,2]
[327782940,1716475847681,-500.0,0.00019994,2]
[327782942,1716475847690,-500.0,0.00019994,2]
[327782944,1716475847700,-500.0,0.00019994,2]
[327782946,1716475847710,-500.0,0.00019994,2]
[327782948,1716475847719,-500.0,0.00019994,2]
[327782950,1716475847729,-500.0,0.00019994,2]
[327782953,1716475847739,-500.0,0.00019994,2]
[327782954,1716475847750,-465.35473807,0.00019994,2]
[327782956,1716475847760,-500.0,0.00019994,2]
[327782958,1716475847770,-500.0,0.00019994,2]
[327782960,1716475847781,-500.0,0.00019994,2]
[327782963,1716475847791,-500.0,0.00019994,2]
[327782965,1716475847803,-500.0,0.00019994,2]
[327782967,1716475847814,-500.0,0.00019994,2]
[327782968,1716475847828,-500.0,0.00019994,2]
[327782970,1716475847837,-500.0,0.00019994,2]
[327782972,1716475847847,-500.0,0.00019994,2]
[327782974,1716475847856,-500.0,0.00019994,2]
[327782976,1716475847866,-500.0,0.00019994,2]
[327782978,1716475847876,-500.0,0.00019994,2]
[327782980,1716475847885,-500.0,0.00019994,2]
[327782982,1716475847895,-500.0,0.00019994,2]
[327782984,1716475847904,-500.0,0.00019994,2]
[327782986,1716475847914,-500.0,0.00019994,2]
[327782988,1716475847923,-500.0,0.00019994,2]
[327782990,1716475847932,-500.0,0.00019994,2]
[327782992,1716475847942,-537.07843599,0.00019994,2]
[327782995,1716475847951,-500.0,0.00019994,2]
[327782996,1716475847962,-5397.04547805,0.0002,2]
[327782998,1716475847975,-4248.96721176,0.0002,2]
[327783001,1716475847985,-2719.53145865,0.0002,2]
[327783003,1716475847994,-2194.584693,0.00020548,2]
[327783005,1716475848004,-181.938073,0.00020945,2]
[327783006,1716475848013,-1942.2943239,0.00020999,2]
[327783008,1716475848022,-3165.35894797,0.00021,7]
[327783010,1716475848032,-280.0,0.00021,2]
[327783012,1716475848041,-4694.88024875,0.00021,2]
[327783014,1716475848051,-200.0,0.0002137,2]
[327783016,1716475848060,-512.9211538,0.00021373,2]
[327783018,1716475848072,-1803.43501369,0.00021916,2]
[327783020,1716475848084,-3388.85,0.00021916,2]
[327783023,1716475848096,-3525.45,0.00021916,2]
[327783579,1716476041038,488.03965703,9.999e-05,2]
[327783732,1716476434111,442.22103103,0.00024534,30]
[327783735,1716476450513,2635.84610155,9.999e-05,2]
[327783780,1716476604409,9517.29631945,9.999e-05,2]
[327783781,1716476606178,455.69136841,9.999e-05,2]
[327783784,1716476610310,1582.29207805,9.999e-05,2]
[327783785,1716476619555,760.94478108,0.000101,2]
[327783790,1716476650764,2090.91663187,9.999e-05,2]
[327783792,1716476672705,1365.41262234,0.000101,2]
[327783840,1716477032590,-2031.9,0.00017998,2]
[327783841,1716477032600,-316.98922001,0.00017999,2]
[327783842,1716477032610,-34956.68450139,0.00018098,2]
[327783843,1716477032619,-24900.0,0.00018099,2]
[327783844,1716477032631,-6752.93300792,0.00018896,2]
[327783845,1716477032640,-503.56304852,0.000189,2]
[327783846,1716477032657,-181.938073,0.00019178,2]
[327783847,1716477032666,-316.98921995,0.0001968,2]
[327783848,1716477032676,-2635.84610155,0.00019892,2]
[327783849,1716477032686,-2881.56878985,0.00019893,2]
[327784317,1716477039123,-711.49700755,0.00019893,2]
[327784318,1716477039135,-2062.08131468,0.00019893,2]
[327784319,1716477039148,-3054.99926652,0.00019993,2]
[327784320,1716477039159,-4694.88024875,0.00021,2]
[327784321,1716477039169,-316.98921995,0.0002136,2]
[327784322,1716477039180,-417.48839794,0.00021526,2]
[327784323,1716477039191,-4225.76789331,0.00021597,2]
[327784324,1716477039201,-5801.58634263,0.00021899,2]
[327784325,1716477039211,-500.0,0.00021907,2]
[327784326,1716477039222,-500.0,0.00021907,2]
[327784327,1716477039232,-500.0,0.00021907,2]
[327784328,1716477039242,-500.0,0.00021907,2]
[327784329,1716477039252,-500.0,0.00021907,2]
[327784330,1716477039262,-500.0,0.00021907,2]
[327784331,1716477039272,-500.0,0.00021907,2]
[327784332,1716477039282,-500.0,0.00021907,2]
[327784333,1716477039292,-239.60642142,0.00021907,2]
[327784334,1716477039302,-500.0,0.00021907,2]
[327784335,1716477039311,-500.0,0.00021907,2]
[327784337,1716477039321,-500.0,0.00021907,2]
[327784339,1716477039331,-500.0,0.00021907,2]
[327784341,1716477039341,-500.0,0.00021907,2]
[327784343,1716477039351,-500.0,0.00021907,2]
[327784345,1716477039360,-225.91697485,0.00021907,2]
[327784347,1716477039371,-500.0,0.00021907,2]
[327784349,1716477039381,-500.0,0.00021907,2]
[327784351,1716477039391,-500.0,0.00021907,2]
[327784353,1716477039404,-500.0,0.00021907,2]
[327784355,1716477039415,-500.0,0.00021907,2]
[327784357,1716477039424,-500.0,0.00021907,2]
[327784359,1716477039435,-500.0,0.00021907,2]
[327784361,1716477039445,-500.0,0.00021907,2]
[327784363,1716477039455,-500.0,0.00021907,2]
[327784365,1716477039465,-500.0,0.00021907,2]
[327784367,1716477039474,-257.3065562,0.00021907,2]
[327784368,1716477039485,-500.0,0.00021907,2]
[327784370,1716477039494,-170.75331371,0.00021907,2]
[327784373,1716477039507,-329.24668629,0.00021907,2]
[327784375,1716477039516,-500.0,0.00021907,2]
[327784377,1716477039526,-500.0,0.00021907,2]
[327784378,1716477039536,-500.0,0.00021907,2]
[327784379,1716477039547,-500.0,0.00021907,2]
[327784380,1716477039561,-500.0,0.00021907,2]
[327784381,1716477039571,-500.0,0.00021907,2]
[327784382,1716477039580,-500.0,0.00021907,2]
[327784383,1716477039591,-500.0,0.00021907,2]
[327784384,1716477039601,-500.0,0.00021907,2]
[327784385,1716477039611,-500.0,0.00021907,2]
[327784386,1716477039621,-500.0,0.00021907,2]
[327784387,1716477039632,-500.0,0.00021907,2]
[327784388,1716477039643,-347.63988143,0.00021907,2]
[327784389,1716477039655,-500.0,0.00021907,2]
[327784390,1716477039664,-35780.06583956,0.00021908,11]
[327784493,1716477042814,-8509.45950451,0.00021908,11]
[327784495,1716477042824,-155.0356582,0.00021913,2]
[327784497,1716477042834,-302.38073973,0.00021913,2]
[327784498,1716477042843,-702.80759732,0.00021913,2]
[327784500,1716477042854,-230.87532501,0.00021913,2]
[327784502,1716477042863,-528.62113532,0.00021913,2]
[327784504,1716477042872,-455.43702485,0.00021914,2]
[327784507,1716477042883,-1581.53789009,0.00021914,2]
[327784508,1716477042892,-15014.30498347,0.00021914,11]
[327784510,1716477042903,-10211.85097479,0.00021915,2]
[327784513,1716477042914,-3330.73316314,0.00021915,2]
[327784601,1716477044207,-6500.93953053,0.00021915,2]
[327784604,1716477044219,-713.95701685,0.00021915,2]
[327784615,1716477044414,-5297.87513432,0.00021915,2]
[327784616,1716477044426,-339.525,0.00021915,2]
[327784617,1716477044437,-2114.86075036,0.00021915,2]
[327784619,1716477044448,-8637.82886515,0.00021916,2]
[327784620,1716477044458,-842.30792511,0.00021916,2]
[327784621,1716477044468,-3980.09499401,0.00021916,2]
[327784622,1716477044478,-3000.0,0.00021916,2]
[327784623,1716477044488,-4283.8546853,0.00021916,10]
[327784624,1716477044499,-166.666666,0.00021918,2]
[327784625,1716477044509,-10000.0,0.00021918,2]
[327784627,1716477044519,-698.93993288,0.00021918,7]
[327784628,1716477044528,-266.94962549,0.00021999,2]
[327784629,1716477044539,-10803.05376619,0.00021999,2]
[327784630,1716477044550,-12803.81869014,0.00022,2]
[327784631,1716477044562,-1000.0,0.00022,20]
[327784632,1716477044572,-154.9690062,0.00022,2]
[327784633,1716477044583,-320.9,0.0002212,3]
[327784635,1716477044594,-151.0,0.0002212,3]
[327784636,1716477044604,-324.47984088,0.000223,6]
[327784637,1716477044614,-166.666666,0.00022431,2]
[327784638,1716477044627,-150.0,0.000226,2]
[327784639,1716477044637,-166.666666,0.00022944,2]
[327784640,1716477044649,-1000.0,0.00023,2]
[327784641,1716477044660,-316.98921995,0.00023041,2]
[327784643,1716477044671,-320.9,0.00023148,3]
[327784644,1716477044681,-166.666666,0.00023456,2]
[327784645,1716477044691,-620.51070067,0.00023812,2]
[327784646,1716477044701,-15000.0,0.0002386,2]
[327784647,1716477044710,-503.56304852,0.000239,2]
[327784648,1716477044720,-166.666666,0.00023969,2]
[327784649,1716477044730,-154.95351395,0.00023997,2]
[327784650,1716477044739,-187.04436987,0.00024,2]
[327784651,1716477044749,-979.31316481,0.00024,2]
[327784653,1716477044758,-153.0,0.0002411,2]
[327784654,1716477044768,-320.9,0.00024175,5]
[327784655,1716477044778,-150.0,0.0002425,2]
[327784656,1716477044788,-156.866,0.0002425,2]
[327784657,1716477044797,-150.0,0.0002425,2]
[327784658,1716477044807,-496.0,0.0002425,2]
[327784659,1716477044818,-158.321615,0.00024384,2]
[327784661,1716477044828,-465.241729,0.00024384,2]
[327784662,1716477044837,-166.666666,0.00024482,2]
[327784663,1716477044846,-206.29725629,0.00024485,2]
[327784664,1716477044856,-1149.81947875,0.00024554,2]
[327784665,1716477044866,-264.31876073,0.00024555,2]
[327784666,1716477044876,-162.560857,0.00024555,2]
[327784667,1716477044887,-847.82419978,0.00024598,2]
[327784668,1716477044898,-189.7425429,0.00024598,2]
[327784669,1716477044908,-294.03302147,0.00024598,2]
[327784671,1716477044918,-1496.35073913,0.00024598,2]
[327784672,1716477044928,-309.35568163,0.00024598,2]
[327784673,1716477044939,-283.57661554,0.00024599,2]
[327784674,1716477044949,-2033.07644531,0.00024599,2]
[327784675,1716477044961,-2006.0,0.000246,4]
[327784676,1716477044971,-65979.86999695,0.000246,2]
[327784678,1716477044981,-173.456111,0.000246,2]
[327784679,1716477044991,-151.0,0.000246,2]
[327784680,1716477045001,-151.0,0.000246,2]
[327784681,1716477045011,-166.283105,0.000246,2]
[327784682,1716477045022,-166.283105,0.000246,2]
[327784683,1716477045032,-1025.755629,0.000246,2]
[327784684,1716477045042,-151.0,0.000246,2]
[327784685,1716477045052,-1025.755629,0.000246,2]
[327784686,1716477045060,-151.0,0.000246,2]
[327784688,1716477045067,-151.0,0.000246,2]
[327784689,1716477045075,-151.0,0.000246,2]
[327784690,1716477045085,-170.880108,0.000246,2]
[327784691,1716477045095,-563.8442,0.000246,2]
[327784692,1716477045105,-563.8442,0.000246,2]
[327784693,1716477045116,-151.0,0.000246,2]
[327784694,1716477045125,-151.0,0.000246,2]
[327784696,1716477045135,-151.0,0.000246,2]
[327784697,1716477045145,-255.801652,0.000246,2]
[327784698,1716477045155,-255.801652,0.000246,2]
[327784699,1716477045164,-151.0,0.000246,2]
[327784700,1716477045173,-1365.007282,0.000246,2]
[327784701,1716477045182,-1365.007282,0.000246,2]
[327784702,1716477045192,-875.802257,0.000246,2]
[327784704,1716477045201,-875.802257,0.000246,2]
[327784705,1716477045211,-151.0,0.000246,2]
[327784706,1716477045220,-151.0,0.000246,2]
[327784707,1716477045230,-184.294077,0.000246,2]
[327784708,1716477045239,-184.294077,0.000246,2]
[327784709,1716477045248,-151.0,0.000246,2]
[327784710,1716477045258,-151.0,0.000246,2]
[327784712,1716477045268,-151.0,0.000246,2]
[327784713,1716477045277,-151.0,0.000246,2]
[327784714,1716477045286,-151.0,0.000246,2]
[327784715,1716477045295,-208.519909,0.000246,2]
[327784716,1716477045305,-151.0,0.000246,2]
[327784717,1716477045315,-208.519909,0.000246,2]
[327784718,1716477045324,-311.163895,0.000246,2]
[327784720,1716477045333,-311.163895,0.000246,2]
[327784721,1716477045342,-151.0,0.000246,2]
[327784722,1716477045352,-151.127054,0.000246,2]
[327784723,1716477045361,-151.127054,0.000246,2]
[327784724,1716477045371,-550.85396294,0.00024654,2]
[327784725,1716477045380,-1893.86633087,0.00024654,2]
[327784726,1716477045390,-155.04341216,0.00024654,2]
[327784728,1716477045399,-400.0,0.00024654,2]
[327784729,1716477045409,-7280.35531015,0.00024656,2]
[327784730,1716477045419,-1414.72921884,0.00024656,3]
[327784731,1716477045428,-500.0,0.00024657,2]
[327784732,1716477045437,-500.0,0.00024657,2]
[327784733,1716477045447,-505.7954187,0.00024657,2]
[327784734,1716477045457,-500.0,0.00024657,2]
[327784735,1716477045466,-500.0,0.00024657,2]
[327784737,1716477045476,-500.0,0.00024657,2]
[327784738,1716477045485,-151.0,0.00024657,2]
[327784739,1716477045494,-500.0,0.00024657,2]
[327784740,1716477045505,-500.0,0.00024657,2]
[327784741,1716477045515,-500.0,0.00024657,2]
[327784742,1716477045524,-577.75,0.00024657,2]
[327784743,1716477045533,-500.0,0.00024657,2]
[327784744,1716477045544,-500.0,0.00024657,2]
[327784745,1716477045556,-500.0,0.00024657,2]
[327784747,1716477045566,-169.15882433,0.00024657,2]
[327784748,1716477045575,-500.0,0.00024657,2]
[327784749,1716477045584,-500.0,0.00024657,2]
[327784750,1716477045595,-500.0,0.00024657,2]
[327784751,1716477045605,-500.0,0.00024657,2]
[327784752,1716477045615,-500.0,0.00024657,2]
[327784753,1716477045624,-500.0,0.00024657,2]
[327784754,1716477045635,-322.7338139,0.00024657,2]
[327784756,1716477045645,-500.0,0.00024657,2]
[327784757,1716477045655,-584.03242001,0.00024657,2]
[327784758,1716477045664,-500.0,0.00024657,2]
[327784759,1716477045674,-869.08,0.00024657,2]
[327784760,1716477045684,-869.08,0.00024657,3]
[327784761,1716477045694,-869.08,0.00024657,4]
[327784762,1716477045704,-869.08,0.00024657,5]
[327784764,1716477045713,-869.08,0.00024657,6]
[327784765,1716477045722,-869.08,0.00024657,7]
[327784766,1716477045731,-505.59425494,0.00024657,2]
[327784767,1716477045741,-500.0,0.00024657,2]
[327784768,1716477045750,-869.08,0.00024657,8]
[327784769,1716477045759,-869.08,0.00024657,9]
[327784770,1716477045768,-869.08,0.00024657,10]
[327784771,1716477045778,-869.08,0.00024657,11]
[327784773,1716477045787,-869.08,0.00024657,12]
[327784774,1716477045795,-869.08,0.00024657,13]
[327784775,1716477045805,-869.08,0.00024657,14]
[327784776,1716477045815,-869.08,0.00024657,15]
[327784777,1716477045824,-869.08,0.00024657,16]
[327784780,1716477045953,-869.08,0.00024657,17]
[327784781,1716477045964,-869.08,0.00024657,18]
[327784783,1716477045973,-869.08,0.00024657,19]
[327784785,1716477045983,-869.08,0.00024657,20]
[327784788,1716477045993,-869.08,0.00024657,21]
[327784790,1716477046003,-869.08,0.00024657,21]
[327784792,1716477046013,-869.08,0.00024657,21]
[327784793,1716477046023,-869.08,0.00024657,21]
[327784794,1716477046033,-869.25658987,0.00024657,21]
[327784795,1716477046043,-500.0,0.00024657,2]
[327784796,1716477046053,-503.08834317,0.00024657,2]
[327784797,1716477046063,-687.13,0.00024657,2]
[327784799,1716477046072,-500.0,0.00024657,2]
[327784800,1716477046082,-786.6,0.00024657,2]
[327784801,1716477046091,-500.0,0.00024657,2]
[327784802,1716477046101,-625.11,0.00024657,2]
[327784803,1716477046110,-500.0,0.00024657,2]
[327784804,1716477046120,-1000.0,0.00024657,2]
[327784805,1716477046129,-500.0,0.00024657,2]
[327784806,1716477046139,-500.0,0.00024657,2]
[327784807,1716477046148,-500.0,0.00024657,2]
[327784809,1716477046160,-500.0,0.00024657,2]
[327784810,1716477046170,-704.45,0.00024657,2]
[327784811,1716477046179,-1026.56,0.00024657,2]
[327784812,1716477046189,-3723.16,0.00024657,2]
[327784813,1716477046199,-500.0,0.00024657,2]
[327784814,1716477046209,-500.0,0.00024657,2]
[327784815,1716477046219,-500.0,0.00024657,2]
[327784817,1716477046231,-803.26,0.00024657,2]
[327784818,1716477046240,-500.0,0.00024657,2]
[327784819,1716477046250,-1441.75,0.00024657,2]
[327784820,1716477046259,-500.0,0.00024657,2]
[327784821,1716477046269,-500.0,0.00024657,2]
[327784822,1716477046278,-500.0,0.00024657,2]
[327784823,1716477046288,-500.0,0.00024657,2]
[327784825,1716477046297,-500.0,0.00024657,2]
[327784826,1716477046306,-500.0,0.00024657,2]
[327784827,1716477046316,-500.0,0.00024657,2]
[327784828,1716477046325,-916.69,0.00024657,2]
[327784829,1716477046335,-500.0,0.00024657,2]
[327784830,1716477046345,-500.0,0.00024657,2]
[327784831,1716477046355,-500.0,0.00024657,2]
[327784832,1716477046365,-158.31416172,0.00024657,2]
[327784834,1716477046375,-513.31653092,0.00024657,2]
[327784835,1716477046384,-500.0,0.00024657,2]
[327784836,1716477046394,-503.4841411,0.00024657,2]
[327784837,1716477046405,-500.0,0.00024657,2]
[327784838,1716477046415,-500.0,0.00024657,2]
[327784839,1716477046424,-483.55528399,0.00024657,2]
[327784840,1716477046433,-4391.84,0.00024657,2]
[327784841,1716477046443,-500.0,0.00024657,2]
[327784843,1716477046453,-500.0,0.00024657,2]
[327784844,1716477046462,-500.0,0.00024657,2]
[327784845,1716477046472,-500.0,0.00024657,2]
[327784846,1716477046482,-500.0,0.00024657,2]
[327784847,1716477046491,-598.73,0.00024657,2]
[327784848,1716477046501,-500.0,0.00024657,2]
[327784849,1716477046511,-500.0,0.00024657,2]
[327784851,1716477046520,-500.0,0.00024657,2]
[327784852,1716477046530,-1067.78,0.00024657,2]
[327784855,1716477046540,-326.882843,0.00024657,2]
[327784857,1716477046551,-326.882843,0.00024657,2]
[327784858,1716477046565,-326.882843,0.00024657,2]
[327784859,1716477046575,-500.0,0.00024657,2]
[327784861,1716477046584,-326.882843,0.00024657,2]
[327784862,1716477046595,-326.882843,0.00024657,2]
[327784863,1716477046605,-643.917077,0.00024657,2]
[327784864,1716477046614,-643.917077,0.00024657,2]
[327784865,1716477046625,-326.882843,0.00024657,2]
[327784866,1716477046635,-643.917077,0.00024657,2]
[327784868,1716477046645,-326.882843,0.00024657,2]
[327784869,1716477046657,-643.917077,0.00024657,2]
[327784870,1716477046666,-326.882843,0.00024657,2]
[327784871,1716477046675,-643.917077,0.00024657,2]
[327784872,1716477046685,-326.882843,0.00024657,2]
[327784873,1716477046694,-643.917079,0.00024657,2]
[327784874,1716477046704,-326.882843,0.00024657,2]
[327784875,1716477046713,-326.882843,0.00024657,2]
[327784877,1716477046723,-326.882843,0.00024657,2]
[327784878,1716477046732,-326.882843,0.00024657,2]
[327784879,1716477046742,-326.882843,0.00024657,2]
[327784880,1716477046751,-326.882843,0.00024657,2]
[327784881,1716477046760,-326.882843,0.00024657,2]
[327784882,1716477046770,-326.882843,0.00024657,2]
[327784883,1716477046779,-326.882843,0.00024657,2]
[327784885,1716477046788,-3351.45,0.00024657,2]
[327784886,1716477046798,-326.882843,0.00024657,2]
[327784887,1716477046807,-326.882836,0.00024657,2]
[327784888,1716477046818,-904.67,0.00024657,2]
[327784889,1716477046827,-500.0,0.00024657,2]
[327784890,1716477046837,-5051.7,0.00024657,2]
[327784891,1716477046847,-1658.77,0.00024657,2]
[327784892,1716477046857,-842.27,0.00024657,2]
[327784893,1716477046866,-500.0,0.00024657,2]
[327784894,1716477046876,-559.66,0.00024657,2]
[327784895,1716477046886,-2096.8,0.00024657,2]
[327784896,1716477046896,-500.0,0.00024657,2]
[327784897,1716477046908,-500.0,0.00024657,2]
[327784898,1716477046918,-500.0,0.00024657,2]
[327784899,1716477046927,-500.0,0.00024657,2]
[327784900,1716477046937,-546.99,0.00024657,2]
[327784901,1716477046946,-237.35400413,0.00024657,2]
[327784902,1716477046956,-500.0,0.00024657,2]
[327784903,1716477046965,-1359.67,0.00024657,2]
[327784905,1716477046976,-500.0,0.00024657,2]
[327784906,1716477046985,-646.58699471,0.00024657,2]
[327784907,1716477046995,-500.0,0.00024657,2]
[327784908,1716477047006,-1532.4,0.00024657,2]
[327784909,1716477047015,-500.0,0.00024657,2]
[327784910,1716477047025,-500.0,0.00024657,2]
[327784911,1716477047034,-500.0,0.00024657,2]
[327784912,1716477047044,-500.0,0.00024657,2]
[327784914,1716477047054,-500.0,0.00024657,2]
[327784915,1716477047063,-500.0,0.00024657,2]
[327784916,1716477047073,-500.0,0.00024657,4]
[327784917,1716477047082,-500.0,0.00024657,2]
[327784918,1716477047092,-5051.86,0.00024657,2]
[327784919,1716477047101,-500.0,0.00024657,2]
[327784920,1716477047111,-500.0,0.00024657,2]
[327784922,1716477047121,-500.0,0.00024657,2]
[327784923,1716477047130,-500.0,0.00024657,2]
[327784924,1716477047139,-500.0,0.00024657,2]
[327784925,1716477047148,-506.31153511,0.00024657,2]
[327784926,1716477047160,-2375.55,0.00024657,2]
[327784927,1716477047170,-197.654653,0.00024657,2]
[327784928,1716477047181,-500.0,0.00024657,2]
[327784930,1716477047191,-197.654653,0.00024657,2]
[327784931,1716477047200,-197.654653,0.00024657,2]
[327784932,1716477047210,-197.654653,0.00024657,2]
[327784933,1716477047219,-197.654653,0.00024657,2]
[327784934,1716477047229,-197.654653,0.00024657,2]
[327784935,1716477047240,-197.654653,0.00024657,2]
[327784936,1716477047249,-500.0,0.00024657,2]
[327784937,1716477047259,-197.654653,0.00024657,2]
[327784939,1716477047268,-197.654653,0.00024657,2]
[327784940,1716477047278,-197.654653,0.00024657,2]
[327784941,1716477047287,-197.654653,0.00024657,2]
[327784942,1716477047297,-197.654653,0.00024657,2]
[327784943,1716477047307,-500.0,0.00024657,2]
[327784944,1716477047316,-197.654653,0.00024657,2]
[327784945,1716477047326,-500.0,0.00024657,2]
[327784947,1716477047336,-500.0,0.00024657,2]
[327784948,1716477047346,-3178.98,0.00024657,2]
[327784949,1716477047355,-197.654653,0.00024657,2]
[327784950,1716477047364,-552.55,0.00024657,2]
[327784951,1716477047374,-197.654653,0.00024657,2]
[327784952,1716477047384,-197.654653,0.00024657,2]
[327784953,1716477047393,-197.654653,0.00024657,2]
[327784954,1716477047405,-500.0,0.00024657,2]
[327784956,1716477047414,-197.654653,0.00024657,2]
[327784957,1716477047424,-197.654653,0.00024657,2]
[327784959,1716477047434,-197.654646,0.00024657,2]
[327784960,1716477047444,-500.0,0.00024657,2]
[327784962,1716477047453,-500.0,0.00024657,2]
[327784964,1716477047463,-500.0,0.00024657,2]
[327784966,1716477047472,-500.0,0.00024657,2]
[327784968,1716477047482,-2334.33,0.00024657,2]
[327784970,1716477047492,-512.72009825,0.00024657,2]
[327784972,1716477047501,-736.24,0.00024657,2]
[327784973,1716477047511,-500.0,0.00024657,2]
[327784975,1716477047520,-500.17731711,0.00024657,2]
[327784977,1716477047529,-500.0,0.00024657,2]
[327784979,1716477047539,-500.0,0.00024657,2]
[327784981,1716477047553,-500.0,0.00024657,2]
[327784983,1716477047563,-450.0,0.00024657,2]
[327784985,1716477047572,-583.66610218,0.00024657,2]
[327784986,1716477047581,-500.0,0.00024657,2]
[327784988,1716477047592,-3000.0,0.00024657,2]
[327784990,1716477047602,-166.283105,0.00024657,2]
[327784992,1716477047612,-166.283105,0.00024657,2]
[327784994,1716477047621,-166.283105,0.00024657,2]
[327784996,1716477047632,-166.283105,0.00024657,2]
[327784997,1716477047642,-166.283105,0.00024657,2]
[327784999,1716477047651,-166.283105,0.00024657,2]
[327785001,1716477047665,-166.283105,0.00024657,2]
[327785003,1716477047675,-166.283105,0.00024657,2]
[327785005,1716477047684,-166.283105,0.00024657,2]
[327785007,1716477047693,-166.283105,0.00024657,2]
[327785009,1716477047702,-500.0,0.00024657,2]
[327785011,1716477047711,-166.283105,0.00024657,2]
[327785012,1716477047721,-166.283105,0.00024657,2]
[327785014,1716477047732,-166.283105,0.00024657,2]
[327785016,1716477047741,-166.283105,0.00024657,2]
[327785018,1716477047750,-166.283105,0.00024657,2]
[327785020,1716477047760,-166.283105,0.00024657,2]
[327785022,1716477047769,-500.0,0.00024657,2]
[327785023,1716477047778,-504.67394282,0.00024657,2]
[327785025,1716477047788,-500.0,0.00024657,2]
[327785027,1716477047797,-166.283105,0.00024657,2]
[327785029,1716477047806,-166.283102,0.00024657,2]
[327785031,1716477047816,-733.78,0.00024657,2]
[327785033,1716477047825,-552.53,0.00024657,2]
[327785034,1716477047835,-500.0,0.00024657,2]
[327785036,1716477047845,-618.03,0.00024657,2]
[327785038,1716477047855,-500.0,0.00024657,2]
[327785040,1716477047864,-500.0,0.00024657,3]
[327785042,1716477047873,-500.0,0.00024657,4]
[327785044,1716477047883,-500.0,0.00024657,5]
[327785046,1716477047892,-500.0,0.00024657,6]
[327785048,1716477047905,-500.0,0.00024657,7]
[327785049,1716477047914,-614.17566307,0.00024657,8]
[327785051,1716477047924,-946.59,0.00024657,2]
[327785053,1716477047934,-1025.755629,0.00024657,2]
[327785055,1716477047944,-1025.755629,0.00024657,2]
[327785057,1716477047954,-151.0,0.00024657,2]
[327785059,1716477047963,-1025.755629,0.00024657,2]
[327785061,1716477047974,-1025.755629,0.00024657,2]
[327785063,1716477047983,-151.0,0.00024657,2]
[327785065,1716477047993,-1025.755629,0.00024657,2]
[327785066,1716477048003,-151.0,0.00024657,2]
[327785068,1716477048014,-500.0,0.00024657,2]
[327785070,1716477048024,-1025.755629,0.00024657,2]
[327785081,1716477048140,-151.0,0.00024657,2]
[327785083,1716477048150,-500.0,0.00024657,2]
[327785085,1716477048162,-1025.755629,0.00024657,2]
[327785087,1716477048172,-151.0,0.00024657,2]
[327785089,1716477048181,-1025.755629,0.00024657,2]
[327785091,1716477048191,-151.0,0.00024657,2]
[327785093,1716477048199,-151.0,0.00024657,2]
[327785095,1716477048209,-1025.755629,0.00024657,2]
[327785097,1716477048219,-504.86232439,0.00024657,2]
[327785098,1716477048228,-290.63342,0.00024657,2]
[327785100,1716477048240,-1025.755629,0.00024657,2]
[327785102,1716477048249,-300.0,0.00024657,2]
[327785103,1716477048259,-1025.755629,0.00024657,2]